Cogmind - Beta 14 @@@ ROGUE MODE // 2025.01.10 @ 10:21:51 Player: Demo Result: Destroyed by as-24014 with Assembled Blade Performance ------------- Evolutions (0) 0 Regions Visited (0) 0 Robots Destroyed (7) 35 Value Destroyed (82) 82 Prototype IDs (0) 0 Alien Tech Used (0) 0 Bonus (0) 0 TOTAL SCORE: 117 Bonus ------- None Cogmind --------- Core Integrity 0/250 Matter 280/300 Energy 50/100 System Corruption 4% Temperature Cool (0) Movement Rolling (80) Location -11/Scrapyard Parts ------- > --- POWER (1) -------- (None) > --- PROPULSION (2) --- Aluminum Leg Wheel > --- UTILITY (2) ------ Small Storage Unit > --- WEAPON (2) ------- EM Pulse Gun Light Assault Rifle > --- INVENTORY (8) ---- Light Ion Engine Wheel Compact Wheel Tractor Beam Peak State ------------ > --- POWER ------------ Ion Engine > --- PROPULSION ------- Wheel Wheel > --- UTILITY ---------- Small Storage Unit Improved Terrain Scanner > --- WEAPON ----------- EM Pulse Gun Light Assault Rifle > --- INVENTORY -------- Light Ion Engine Light Treads Light Treads Aluminum Leg Wheel Compact Wheel Tractor Beam EM Pulse Gun [Rating: 9] Favorites ----------- Power Ion Engine Engine Ion Engine Propulsion Wheel Treads Light Treads Wheel Wheel Utility Small Storage Unit Device Improved Terrain Scanner Storage Small Storage Unit Weapon Light Assault Rifle Energy Gun EM Pulse Gun Ballistic Gun Light Assault Rifle Build | -11 ------- Run | Yrd Slots Evolved . | . Power . | . Propulsion . | . Utility . | . Weapon . | . Parts Attached 14 | 14 Power 1 | 1 Engine 1 | 1 Core . | . Reactor . | . Propulsion 8 | 8 Treads 3 | 3 Leg 1 | 1 Wheel 4 | 4 Hover . | . Flight . | . Utility 2 | 2 Device 1 | 1 Storage 1 | 1 Processor . | . Hackware . | . Protection . | . Artifact . | . Weapon 3 | 3 Energy Gun 2 | 2 Energy Cannon . | . Ballistic Gun 1 | 1 Ballistic Cannon . | . Launcher . | . Special Weapon . | . Impact Weapon . | . Slashing Weapon . | . Piercing Weapon . | . Special Melee Weapon . | . Unidentified Prototypes . | . Parts Lost 6 | 6 Power 1 | 1 Propulsion 3 | 3 Utility 1 | 1 Weapon 1 | 1 Highest Loss Streak 6 | 6 To Critical Strikes . | . Average Slot Usage (%) . | . Peak Build Rating 9 | 9 Average Rating 8 | 8 On Entrance . | . Naked Turns . | . Heaviest Build 14 | 14 Greatest Support 20 | 20 Greatest Overweight (x) 2 | 2 Average Overweight (x) . | . Largest Inventory Capacity 8 | 8 Average Capacity 7 | 7 Most Carried 8 | 8 Average Carried 7 | 7 Final Capacity 8 | 8 Final Carried 4 | 4 Class Distribution -------------------- None Dominant Class ---------------- None Resources | -11 ----------- Run | Yrd Matter Collected 320 | 320 Remotely . | . Salvage Created 312 | 312 Parts 14 | 14 Haulers Intercepted . | . Recyclers Shooed . | . Parts Field Recycled . | . Retrieved Matter . | . Parts Self-Destructed . | . Prevented . | . Kills | -11 ------- Run | Yrd Combat Hostiles Destroyed 6 | 6 Guns 6 | 6 Classes Destroyed 5 | 5 Worker 2 | 2 Tunneler 3 | 3 Recycler 1 | 1 Demolisher 1 | 1 Assembled 5 | 5 Best Kill Streak 6 | 6 Combat Bots Only 6 | 6 Max Kills in Single Turn 2 | 2 Gunslinging 1 | 1 Exploded . | . Melee . | . Uniques/NPCs Destroyed . | . Combat | -11 -------- Run | Yrd Hostile Shots Fired 52 | 52 Missed 11 | 11 Damage Taken 805 | 805 Core 262 | 262 Absorbed by Shields . | . Core Remaining (%) . | . Volleys Fired 30 | 30 Largest 2 | 2 Hottest 60 | 60 Shots Fired 59 | 59 Gun 59 | 59 Cannon . | . Launcher . | . Special . | . Kinetic 30 | 30 Thermal . | . Explosive . | . Electromagnetic 29 | 29 Robot Hit Streak 7 | 7 Robot Miss Streak 2 | 2 Penetration Max . | . Secondary Targets 2 | 2 Max Gunslinging Chain 1 | 1 Shots Hit Robots 41 | 41 Core Hits 20 | 20 Critical Kills . | . Critical Parts Destroyed . | . Critical Strikes 1 | 1 Corrupt 1 | 1 Melee Attacks . | . Impact . | . Slashing . | . Piercing . | . Sneak Attacks . | . Combat Hostiles . | . Follow-up Attacks . | . Damage Inflicted 472 | 472 Guns 446 | 446 Cannons . | . Explosions 26 | 26 Melee . | . Ramming . | . Kinetic 181 | 181 Thermal 26 | 26 Explosive . | . Electromagnetic 265 | 265 Impact . | . Slashing . | . Piercing . | . Highest Corruption 4 | 4 Average Corruption 4 | 4 Corruption Purged . | . Corruption Blocked . | . Overload Shots . | . Overflow Damage . | . Projectiles . | . Explosions . | . Melee . | . Knockbacks . | . Impact . | . Kinetic . | . Secondary . | . Self-Inflicted Damage . | . Shots . | . Rammed . | . Targets Rammed . | . Kicked . | . Crushed . | . Highest Temperature 215 | 215 Average Temperature 62 | 62 Received Heat Transfer 280 | 280 Effects 1 | 1 Interference 1 | 1 Siege Activations . | . Robots Corrupted . | . Combat Hostiles . | . Parts Fried . | . Impact Corruptions . | . Robots Melted . | . Combat Hostiles . | . Parts Melted . | . Heat Transferred 50 | 50 Parts Sabotaged . | . Parts Stolen . | . Parts Stripped . | . Power Chain Reactions 1 | 1 Alert | -11 ------- Run | Yrd Peak Influence 30 | 30 Initial . | . Average 9 | 9 Maximum Alert Level . | . Low Security (%) 100 | 100 Level 1 . | . Level 2 . | . Level 3 . | . Level 4 . | . Level 5 . | . High Security . | . Max Security . | . Squads Dispatched . | . Investigation . | . Extermination . | . Reinforcement . | . Assault . | . Garrison . | . Intercept . | . Searches Triggered . | . Construction Impeded . | . Haulers Reinforced . | . Active Scanning Responses . | . Cargo Convoy Interrupts . | . Stealth | -11 --------- Run | Yrd Distress Signals . | . Communications Jammed . | . Distress Signals . | . Times Spotted 21 | 21 Peak Tracking Total 20 | 20 Tactical Retreats 2 | 2 Traps | -11 ------- Run | Yrd Traps Triggered . | . Indirectly . | . Trap Hack Attempts . | . Triggered . | . Disarmed . | . Reprogrammed . | . Reused . | . Traps Extracted . | . Installed . | . Triggered . | . Machines | -11 ---------- Run | Yrd Machines Disabled . | . Max in Single Turn . | . Machines Repaired . | . Machines Dismantled . | . Machines Sabotaged . | . Overloaded Fab Kills . | . Hacking | -11 --------- Run | Yrd Machines Accessed . | . Terminals . | . Fabricators . | . Repair Stations . | . Recycling Units . | . Scanalyzers . | . Garrison Access . | . Total Hacks . | . Successful . | . Failed . | . Catastrophic . | . Database Lockouts . | . Manual . | . Terminals . | . Fabricators . | . Repair Stations . | . Recycling Units . | . Scanalyzers . | . Garrison Access . | . Terminal Hacks . | . Fabricator Hacks . | . Repair Station Hacks . | . Recycling Unit Hacks . | . Scanalyzer . | . Garrison Access Hacks . | . Unauthorized Hacks . | . Terminals . | . Fabricators . | . Repair Stations . | . Recycling Units . | . Scanalyzers . | . Garrison Access . | . Data Cores Recovered . | . Used . | . Hacking Detections . | . Full Trace Events . | . Feedback Events . | . Feedback Blocked . | . Robot Schematics Acquired . | . Robots Built . | . Authchips . | . Time . | . Total Robot Build Rating . | . Part Schematics Acquired . | . Parts Built . | . Authchips . | . Time . | . Total Part Build Rating . | . Parts Repaired . | . Time . | . Parts Recycled . | . Recycled Matter . | . Retrieved Matter . | . Retrieved Components . | . Parts Scanalyzed . | . Part Schematics Acquired . | . Parts Damaged . | . Bothacking | -11 ------------ Run | Yrd Used RIF Installer . | . Robots Hacked . | . Non-combat . | . Combat . | . Robot Hacks Applied . | . Relay Couplers Released . | . Fabnet Peak Effective % . | . Robots Rewired . | . Allies Hacked . | . Hacks Repelled . | . Allies | -11 -------- Run | Yrd Total Allies . | . Largest Group . | . Highest-Rated Group . | . Highest-Rated Ally . | . Total Orders . | . Ally Attacks . | . Total Damage . | . Kills . | . Allies Corrupted . | . Allies Melted . | . Intel | -11 ------- Run | Yrd Robot Analysis Total . | . Derelict Logs Recovered . | . Drone Launches . | . Drone Recoveries . | . Exploration | -11 ------------- Run | Yrd Turns Passed 1018 | 1018 Spaces Moved 172 | 172 Core 16 | 16 Treads . | . Legs . | . Wheels 156 | 156 Hover . | . Flight . | . Fastest Speed 50 | 50 Average Speed 80 | 80 Slowest Speed 150 | 150 Overloaded Moves . | . Propulsion Burnouts . | . Robots Hopped . | . Cave-ins Triggered . | . Exploration Rate (%) 16 | 16 Regions Visited . Branch Regions . Pre-discovered Areas . | . Known Exits Taken . | . Unknown Exits Taken . | . Scrap Searched . | . Spaces Dug . | . Terrain Destroyed 3 | 3 Melee . | . Projectile . | . AOE 3 | 3 Terrain Rammed . | . Walls Destroyed . | . Machines Disabled . | . Actions | -11 --------- Run | Yrd Total 998 | 998 Wait 762 | 762 Move 172 | 172 Hop . | . Pick Up 14 | 14 Fast Attach 7 | 7 Attach 4 | 4 Detach . | . Swap 3 | 3 Drop 6 | 6 Fire 30 | 30 Melee . | . Ram . | . Kick . | . Crush . | . Escape Stasis . | . Rewire . | . Trap . | . Miscellaneous . | . Route ------- -11/Scrapyard (discovered 1 exit: [*Mat]) History --------- Turn | Location | Event 9 | -11/Scrapyard | Discovered new exit (range 16) 966 | -11/Scrapyard | Assembled infested the area 1003 | -11/Scrapyard | Core integrity fell below 50% 1012 | -11/Scrapyard | Core integrity fell below 20% 1019 | -11/Scrapyard | Destroyed by as-24014 with Assembled Blade Last Messages --------------- 00991_ as-16290 destroyed. 00991_ Switching to secondary target: as-67275. 00997_ Ion Engine destroyed. 01000_ The unstable cave ceiling collapses. 01002_ K-01 Serf collects debris. 01002_ Destroyed Asb. Hover Unit. 01004_ EM Pulse Gun destroyed. 01005_ Lgt. Treads destroyed. 01005_ System corrupted by crushing effect (+4). 01005_ K-01 Serf collects debris. 01005_ as-66245 destroyed. 01006_ Overheating: System interference. 01006_ Lgt. Assault Rifle temporarily disabled. 01010_ Lgt. Treads destroyed. 01010_ Wheel destroyed. 01010_ Imp. Terrain Scanner destroyed. 01014_ Acquired 21 matter. 01014_ K-01 Serf collects debris. 01017_ as-60804 sneak attacks. 01017_ K-01 Serf destroyed. Map ----- +----------------------------------------------------+ | ??????????#???????#?#? ?" ????#????????????????? | | ??????????????#?####?#??" ??#???#?????????????? | | ??????????#???????#???#? " ???#???##???????????? | | ??????????????#?##??##? " ?##????????????????? | | ??????????????###???#??? ??#????###???????????? | | ????????????#?########### #?#???#?#?#???????????? | | ?????????#?## # ## #?#?#?????##??????????? | | ??????????#?# # ###??####??#??????????? | | ?????????##?# # %# #????##?##??????????? | | ???????????## #????####???????????? | | ?????????##?# % # ###??#?#?#?#????????? | | ????????????# a ##??#??##?#??????????? | | ????????#?#?# ## # ###?????#?#?????????? | | ???????????###########?# ##?#?#??#?#??????????? | | ?????????#????#?########%aa ##?#?#??#???????????? | | ????????????#?### % ##???#??##???????????? | | ?????????##???## %%% ######??#?????????????? | | ??????????#?##?# % #?#??#?????????????? | | ???????????##??# %=# ##?####????????????? | | ??????????##?########## ###??#?#???????????? | | ??????????#?##?#?#?#?## ###???????#?????????? | | ????????#?? ?# ? #?## % a ##??#?##???????????? | | ????????#?? #?##? ? ### a ##????#????????????? | | ????????#??##?##? ## ?# %* #??????????????????? | | ???????#?##??#?### #### a ####????#?#???????????? | | ??????????#???##?# @ ####?##??##???????????? | | ???????##?????#### ####?#????????????????? | | ???????#?###?????# % #??###?#??????????????? | | ???????#?#?#??##?# ###???????????????????? | | ????????##?????#?# #???#?#???????????????? | | ???????###??#???## ##???#??#?????????????? | | ???????#?#??????## #?##??????????????????? | | ?????????????????# #??????#??????????????? | | ??????#??????? ??# ###?#??##?????????????? | | ????????##?#???# #?????#???????????????? | | ???????#??#??# # #?##???#??????????????? | | ???#????#???? # #?#?#?##??????????????? | | ???????????####### #### #?????????????????????? | | ?###########??# % # ##????????????????????? | | ?# #?#?# # #????#????????????????? | | ?# #???# ! ## ##?????????????????? | | ?# ##### !%% * ###????????????????? | | ?# %= ! ##??????????????????? | | ?# | = # ####???????????????????? | | ?# = ##### ! < ####??????????????????????? | | ?# #???# =* #?????????????????????????? | | ?# #???##########?????????????????????????? | | ?##########??????????????????????????????????????? | | ??????#??????????????????????????????????????????? | | ?????????????????????????????????????????????????? | +----------------------------------------------------+ Best States ------------- Heat Dissipation 25 Energy Generation 10 Energy Capacity 250 Matter Stores 300 Matter Capacity 300 Sight Range 16 Terrain Scan Range 16 Terrain Scan Density 10 Evasion (%) 50 Recoil Reduction 2 Item Schematics ----------------- None Robot Schematics ------------------ None Fabricated ------------ Nothing Alien Tech Used ----------------- None Achievements -------------- None Challenges ------------ None Game ------ Seed SpliceZioniteSpecial Manual? 0 Play Time 00:07:44 Cumulative 146.5 hours Start 2025.01.10 @ 10:16:33 End 2025.01.10 @ 10:21:51 Sessions 0 Manual Loads 0 Difficulty Rogue Special Mode None Game No. 174 Rogue 174 Adventurer 0 Explorer 0 Win Type - Total 1 Types 1/0/0/0/0/0/0/0/0 Lore% 59 Gallery% 72 Achievement% 57 Wizard Run 0 Options --------- Layout 1 ASCII 0 Keyboard 0 Movement Numpad Keybinds 0 Fullscreen 1 Font 24/Smallcaps Map View 50x35 Zoom Use 0% Tactical HUD 1 Map Filters NONE Filters NONE Steam 1 RUN: d26ce92b-e9e3-42ca-bbab-cd969961013f